bitfinex-derivatives/quotes_SOLF0:USTF0_20250228
["timestamp","ask_amount","ask_price","bid_price","bid_amount"]
[1740703965155,7.334,136.47,136.46,0.05301314]
[1740703965555,7.3337,136.48,136.46,0.05301314]
[1740703965952,0.0496897,136.49,136.46,0.05301314]
[1740703967057,7.3338,136.48,136.46,0.05301314]
[1740703968356,0.0496897,136.49,136.46,0.05301314]
[1740703968558,7.3830897,136.49,136.46,0.05301314]
[1740703968961,0.0496897,136.49,136.46,0.05301314]
[1740703969157,0.0496897,136.49,136.39,3.743]
[1740703969358,1.9067,136.5,136.39,3.743]
[1740703970261,7.335,136.46,136.41,7.337]
[1740703970559,7.38347502,136.46,136.43,0.05478476]
[1740703970859,7.3355,136.45,136.43,0.05478476]
[1740703971058,0.04847502,136.46,136.43,0.05478476]
[1740703971259,7.3356,136.44,136.43,0.05478476]
[1740703971457,0.04847502,136.46,136.43,0.05478476]
[1740703974060,7.38337502,136.46,136.43,0.05478476]
[1740703975261,7.3351,136.45,136.43,0.05478476]
[1740703975461,0.04847502,136.46,136.43,0.05478476]
[1740703976563,7.3356,136.44,136.43,0.05478476]
[1740703977063,7.3365,136.43,136.38,7.3387]
[1740703977362,9.96852526,136.48,136.38,7.3387]
[1740703977557,7.3366,136.43,136.38,7.3387]
[1740703978163,0.04831763,136.42,136.39,0.04862527]
[1740703979263,0.04831763,136.42,136.39,7.38682527]
[1740703980563,0.04831763,136.42,136.39,0.04862527]
[1740703981156,0.04831763,136.42,136.41,7.3372]
[1740703981367,9.96852526,136.46,136.39,0.04862527]
[1740703981663,9.96852526,136.46,136.44,7.3352]
[1740703981864,7.3343,136.47,136.44,7.3352]
[1740703982458,0.04792056,136.47,136.44,0.04701436]
[1740703983059,7.3351,136.45,136.44,0.04701436]
[1740703983960,7.3348,136.46,136.44,0.04701436]
[1740703984269,0.04792056,136.47,136.44,0.04701436]
[1740703984767,7.3351,136.45,136.44,0.04701436]
[1740703986464,7.3347,136.46,136.44,0.04701436]
[1740703986765,10.01644582,136.47,136.44,0.04701436]
[1740703988364,10.01644582,136.47,136.36,192.40435025]
[1740703988567,9.96852526,136.47,136.35,3.8605]
[1740703988963,7.3362,136.43,136.37,7.339]
[1740703989561,0.05232325,136.41,136.39,0.05364953]
[1740703990168,0.05232325,136.41,136.39,7.39144953]
[1740703990368,0.05232325,136.41,136.39,0.05364953]
[1740703990771,0.05232325,136.41,136.4,7.3378]
[1740703992475,0.05232325,136.41,136.39,0.05364953]
[1740703993078,7.3378,136.4,136.39,0.05364953]
[1740703994176,7.3394,136.37,136.33,4.0471]
[1740703994375,1.9302,136.44,136.33,4.0471]
[1740703995376,0.05529659,136.4,136.37,0.04730183]
[1740703996876,10.02382185,136.4,136.37,0.04730183]
[1740703999181,0.05529659,136.4,136.37,0.04730183]
[1740704004883,0.05529659,136.4,136.39,7.3376]
[1740704005182,9.96852526,136.44,136.37,22.04730183]
[1740704005384,9.96852526,136.44,136.43,7.3354]
[1740704006284,0.04631267,136.45,136.43,7.3354]
[1740704006483,0.04631267,136.45,136.44,7.3349]
[1740704007782,0.04631267,136.45,136.42,0.05440782]
[1740704009281,0.04631267,136.45,136.43,7.3351]
[1740704010777,0.04631267,136.45,136.42,7.39020782]
[1740704011181,0.04631267,136.45,136.42,0.05440782]
[1740704011882,7.38081267,136.45,136.42,0.05440782]
[1740704012784,0.04631267,136.45,136.42,0.05440782]
[1740704012985,2.00641267,136.45,136.42,0.05440782]
[1740704015284,0.04631267,136.45,136.42,0.05440782]
[1740704017083,7.3352,136.44,136.42,0.05440782]
[1740704017387,7.3352,136.44,136.37,7.3385]
[1740704017782,7.3356,136.43,136.37,7.3385]
[1740704018585,0.04969544,136.41,136.39,0.05384234]
[1740704020292,0.04969544,136.41,136.4,7.337]
[1740704021690,9.96852526,136.47,136.39,0.05384234]
[1740704022689,0.05256716,136.44,136.39,0.05384234]
[1740704023393,0.05256716,136.44,136.43,7.3353]
[1740704026692,47.3122252,136.51,136.43,21.98]
[1740704026892,47.3122252,136.51,136.41,11.58]
[1740704027789,0.05018714,136.47,136.45,0.05545131]
[1740704029403,0.05018714,136.47,136.46,7.3338]
[1740704031101,0.05018714,136.47,136.45,0.05545131]
[1740704031610,7.3338,136.46,136.45,0.05545131]
[1740704031805,0.05018714,136.47,136.38,86.65098136]
[1740704032006,3.8223,136.46,136.36,3.8965]
[1740704032311,3.8223,136.46,136.37,7.3384]
[1740704032501,7.3365,136.41,136.37,7.3384]
[1740704032707,3.8223,136.46,136.36,3.8965]
[1740704032901,3.8223,136.46,136.36,7.3389]
[1740704033213,0.05499711,136.42,136.4,0.05081579]
[1740704033410,0.05499711,136.42,136.36,7.3389]
[1740704034514,0.05499711,136.42,136.38,0.05385699]
[1740704034812,0.05499711,136.42,136.38,7.39195699]
[1740704035203,0.05499711,136.42,136.38,0.05385699]
[1740704035405,0.05499711,136.42,136.39,7.3372]
[1740704036014,0.05499711,136.42,136.38,0.05385699]
[1740704036715,7.39149711,136.42,136.38,0.05385699]
[1740704037108,0.05499711,136.42,136.38,0.05385699]
[1740704037819,7.3367,136.41,136.38,0.05385699]
[1740704038021,0.05499711,136.42,136.38,0.05385699]
[1740704038716,7.3367,136.41,136.38,0.05385699]
[1740704039116,0.05499711,136.42,136.38,0.05385699]
[1740704039317,7.3376,136.39,136.32,3.8764]
[1740704039518,11.90302526,136.43,136.32,3.8764]
[1740704039718,7.3379,136.39,136.34,7.3401]
[1740704039918,11.90302526,136.43,136.32,3.8764]
[1740704040319,7.3382,136.38,136.36,0.05587272]
[1740704040623,0.05321159,136.39,136.36,0.05587272]
[1740704040815,7.39101159,136.39,136.36,0.05587272]
[1740704041012,0.05321159,136.39,136.36,0.05587272]
[1740704041916,7.3382,136.38,136.36,0.05587272]
[1740704042113,0.05321159,136.39,136.36,0.05587272]
[1740704042520,7.39091159,136.39,136.36,0.05587272]
[1740704044319,0.05321159,136.39,136.36,0.05587272]
[1740704045120,0.05321159,136.39,136.38,7.3381]
[1740704046218,9.96852526,136.42,136.41,7.3365]
[1740704048415,2.526e-05,136.42,136.41,7.3365]
[1740704048821,2.526e-05,136.42,136.4,0.05298044]
[1740704049121,0.05221501,136.43,136.4,0.05298044]
[1740704049821,7.38771501,136.43,136.4,0.05298044]
[1740704050018,0.05221501,136.43,136.4,0.05298044]
[1740704050414,0.05221501,136.43,136.4,7.38948044]
[1740704050619,0.05221501,136.43,136.4,0.05298044]
[1740704051024,0.05221501,136.43,136.42,7.336]
[1740704051225,0.05221501,136.43,136.4,0.05298044]
[1740704051726,0.05221501,136.43,136.42,7.336]
[1740704051928,0.05221501,136.43,136.4,0.05298044]
[1740704052419,0.05221501,136.43,136.4,7.38988044]
[1740704052625,0.05221501,136.43,136.4,0.05298044]
[1740704052824,7.336,136.42,136.4,0.05298044]
[1740704053323,0.05221501,136.43,136.4,0.05298044]
[1740704053524,7.336,136.42,136.4,0.05298044]
[1740704053721,0.05221501,136.43,136.4,0.05298044]
[1740704054121,7.3363,136.42,136.4,0.05298044]
[1740704055226,0.05221501,136.43,136.4,0.05298044]
[1740704055725,0.05221501,136.43,136.42,7.336]
[1740704056228,30.01229994,136.49,136.41,2.0316]
[1740704056721,7.3327,136.48,136.44,7.3346]
[1740704057219,7.3327,136.48,136.41,2.0316]
[1740704057426,0.05294578,136.47,136.45,7.38866293]
[1740704058626,0.05294578,136.47,136.45,0.05446293]
[1740704059423,7.3338,136.46,136.45,0.05446293]
[1740704059624,0.05294578,136.47,136.33,0.4276]
[1740704059925,7.3355,136.43,136.39,7.3375]
[1740704060323,7.3351,136.44,136.39,7.3375]
[1740704060724,0.0522806,136.43,136.4,0.05317295]
[1740704060920,7.3339,136.46,136.34,11.58]
[1740704061125,0.05246736,136.43,136.4,0.05500516]
[1740704061426,0.05246736,136.43,136.42,7.3357]
[1740704062829,6.736e-05,136.43,136.42,7.3357]
[1740704063030,6.736e-05,136.43,136.4,0.05500516]
[1740704063031,7.3324,136.49,136.46,7.3338]
[1740704064231,0.04658581,136.49,136.46,0.05302088]
[1740704064426,7.3328,136.48,136.46,0.05302088]
[1740704065326,0.04658581,136.49,136.46,0.05302088]
[1740704065625,7.37898581,136.49,136.46,7.38672088]
[1740704066529,0.04658581,136.49,136.46,7.38672088]
[1740704069532,7.37888581,136.49,136.46,7.38672088]
[1740704069835,7.37888581,136.49,136.46,0.05302088]
[1740704070433,0.04658581,136.49,136.46,0.05302088]
[1740704071434,0.04658581,136.49,136.46,7.38682088]
[1740704072136,7.37878581,136.49,136.46,7.38682088]
[1740704072738,7.37878581,136.49,136.46,0.05302088]
[1740704072939,0.04658581,136.49,136.35,207.08345025]
[1740704073142,1.9351,136.5,136.36,1.8531]
[1740704074138,0.04862013,136.44,136.42,7.38801583]
[1740704074534,0.05148447,136.44,136.42,7.38801583]
[1740704075041,0.05148447,136.44,136.42,0.05231583]
[1740704075335,0.05148447,136.44,136.43,7.3354]
[1740704083244,0.05148447,136.44,136.42,0.05231583]
[1740704083844,7.38668447,136.44,136.42,0.05231583]
[1740704084451,0.05148447,136.44,136.42,0.05231583]
[1740704086254,0.05148447,136.44,136.43,7.3354]
[1740704088450,0.05148447,136.44,136.42,7.38801583]
[1740704088749,0.05148447,136.44,136.42,0.05231583]
[1740704091545,7.3354,136.43,136.42,0.05231583]
[1740704096056,7.38678447,136.44,136.42,0.05231583]
[1740704096252,44.07,136.43,136.23,355.66212793]
[1740704096554,22.04,136.35,136.23,201.14357768]
[1740704096749,33.68,136.34,136.23,201.14357768]
[1740704097154,22.04,136.33,136.23,201.14357768]
[1740704097551,0.05384774,136.3,136.27,0.05215108]
[1740704097857,0.05384774,136.3,136.24,116.9648258]
[1740704098855,0.05384774,136.3,136.26,0.04861065]
[1740704109862,0.05384774,136.3,136.26,7.39301065]
[1740704110062,0.05384774,136.3,136.26,0.04861065]
[1740704110660,0.05384774,136.3,136.27,7.344]
[1740704111754,0.05384774,136.3,136.26,0.04861065]
[1740704111958,41.90695292,136.4,136.26,0.04861065]
[1740704112164,1.30410305,136.39,136.23,11.68]
[1740704112560,1.30410305,136.39,136.21,156.43835025]
[1740704112760,1.30410305,136.39,136.22,11.68]
[1740704112959,0.05282699,136.31,136.3,7.3424]
[1740704113264,41.90695292,136.4,136.3,7.3424]
[1740704114060,39.84735292,136.4,136.3,7.3424]
[1740704114361,0.05503464,136.36,136.34,0.0513138]
[1740704114566,0.05503464,136.36,136.22,11.68]
[1740704114567,3.8842,136.41,136.22,11.68]
[1740704114864,0.05591327,136.36,136.34,0.04998783]
[1740704115060,3.8842,136.41,136.22,167.66676343]
[1740704115463,0.05010221,136.33,136.32,7.341]
[1740704115765,3.8842,136.41,136.32,7.341]
[1740704116366,0.05074045,136.38,136.35,0.04941408]
[1740704116558,9.83505298,136.42,136.31,2.0175]
[1740704116957,9.83505298,136.42,136.39,7.3376]
[1740704117358,9.83505298,136.46,136.39,7.3376]
[1740704117766,0.04958183,136.44,136.41,0.04815261]
[1740704122567,0.04958183,136.44,136.32,1.9462]
[1740704122568,33.74,136.43,136.32,1.9462]
[1740704123075,7.3366,136.41,136.32,1.9462]
[1740704123271,55.77,136.43,136.32,1.9462]
[1740704123465,55.77,136.43,136.36,0.04971797]
[1740704123466,0.05181573,136.39,136.36,0.04971797]
[1740704130576,7.38951573,136.39,136.36,0.04971797]
[1740704131175,0.05181573,136.39,136.36,0.04971797]
[1740704134378,7.38941573,136.39,136.36,0.04971797]
[1740704135274,0.05181573,136.39,136.36,0.04971797]
[1740704138475,0.05181573,136.39,136.36,7.38871797]
[1740704138876,9.83505298,136.43,136.36,0.04971797]
[1740704139480,9.83505298,136.43,136.38,7.3376]
[1740704139775,9.83505298,136.43,136.37,1.979]
[1740704139976,0.05395071,136.42,136.39,0.05137019]
[1740704141382,0.05395071,136.42,136.39,7.38897019]
[1740704145080,0.05395071,136.42,136.39,0.05137019]
[1740704147984,0.05395071,136.42,136.39,2.07167019]
[1740704148185,0.05395071,136.42,136.39,9.40907019]
[1740704149386,0.05395071,136.42,136.39,2.07167019]
[1740704152497,7.39025071,136.42,136.39,2.07167019]
[1740704158101,0.05395071,136.42,136.39,2.07167019]
[1740704158302,0.05395071,136.42,136.39,9.40897019]
[1740704160001,0.05395071,136.42,136.4,7.3369]
[1740704160308,7.3345,136.45,136.4,7.3369]
[1740704160606,7.3349,136.44,136.4,7.3369]
[1740704161004,39.84735292,136.46,136.39,2.07167019]
[1740704161210,0.05637173,136.44,136.39,2.07167019]
[1740704161404,39.84735292,136.46,136.39,2.07167019]
[1740704161611,39.84735292,136.46,136.43,7.335]
[1740704161902,79.86772752,136.47,136.43,7.335]
[1740704161903,9.83505298,136.47,136.43,7.335]
[1740704162105,9.83505298,136.47,136.39,2.0203]
[1740704162311,9.83505298,136.47,136.44,7.3347]
[1740704162704,17.22195017,136.47,136.44,0.05485079]
[1740704164107,9.88865017,136.47,136.44,0.05485079]
[1740704164312,31.92865017,136.47,136.38,2.0142]
[1740704164608,33.80875298,136.47,136.38,2.0142]
[1740704164809,33.62,136.46,136.38,2.0142]
[1740704165510,0.0529034,136.43,136.41,0.0464352]
[1740704168106,7.336,136.42,136.41,0.0464352]
[1740704168502,0.0529034,136.43,136.41,0.0464352]
[1740704173613,7.336,136.42,136.41,0.0464352]
[1740704175010,7.3887034,136.43,136.41,0.0464352]
[1740704175915,0.0529034,136.43,136.41,0.0464352]
[1740704179315,7.3888034,136.43,136.41,0.0464352]
[1740704180820,0.0529034,136.43,136.41,0.0464352]
[1740704181018,7.336,136.42,136.41,0.0464352]
[1740704181718,0.0529034,136.43,136.33,3.9456]
[1740704181919,7.3379,136.39,136.33,11.2862]
[1740704182814,7.3379,136.39,136.33,3.9456]
[1740704183018,0.05365594,136.37,136.35,0.04701361]
[1740704183823,0.05365594,136.37,136.35,7.38671361]
[1740704184013,0.05365594,136.37,136.35,0.04701361]
[1740704185423,0.05365594,136.37,136.35,7.38641361]
[1740704186121,0.05365594,136.37,136.35,0.04701361]
[1740704187027,0.05365594,136.37,136.35,7.38631361]
[1740704192325,0.05365594,136.37,136.35,0.04701361]
[1740704192529,0.05365594,136.37,136.36,7.3392]
[1740704192726,7.3368,136.41,136.35,0.04701361]
[1740704193121,7.3368,136.41,136.37,7.3384]
[1740704193531,9.83505298,136.42,136.35,0.04701361]
[1740704193932,0.05156696,136.4,136.35,0.04701361]
[1740704194729,0.05156696,136.4,136.39,7.3372]
[1740704201035,0.05156696,136.4,136.38,0.05300409]
[1740704203428,7.3376,136.39,136.38,0.05300409]
[1740704209442,9.88661994,136.4,136.31,1.9531]
[1740704209742,9.83505298,136.4,136.31,1.9531]
[1740704209936,31.87505298,136.4,136.31,1.9531]
[1740704210241,7.3401,136.35,136.31,1.9531]
[1740704210743,0.05294411,136.34,136.32,0.05328579]
[1740704213845,0.05294411,136.34,136.33,7.3408]
[1740704214248,0.05294411,136.34,136.32,0.05328579]
[1740704215537,7.3408,136.33,136.32,0.05328579]
[1740704215848,0.05294411,136.34,136.32,0.05328579]
[1740704219643,7.39374411,136.34,136.32,0.05328579]
[1740704219842,0.05294411,136.34,136.32,0.05328579]
[1740704220750,7.39324411,136.34,136.32,0.05328579]
[1740704222453,0.05294411,136.34,136.32,0.05328579]
[1740704226556,7.3388,136.37,136.33,7.3408]
[1740704226859,39.84735292,136.4,136.29,1.995]
[1740704227158,7.3395,136.36,136.32,7.341]
[1740704227657,0.05112583,136.35,136.33,0.05429566]
[1740704229957,0.05112583,136.35,136.33,7.39499566]
[1740704231257,9.83505298,136.41,136.33,0.05429566]
[1740704231453,9.83505298,136.41,136.34,2.0147]
[1740704231753,132.5002106,136.42,136.4,7.337]
[1740704231961,132.5002106,136.42,136.35,2.0438]
[1740704232561,132.5002106,136.42,136.37,0.04995091]
[1740704232755,0.04977953,136.4,136.37,0.04995091]
[1740704233459,0.04977953,136.4,136.39,7.3376]
[1740704235062,111.77372746,136.48,136.37,0.04995091]
[1740704235263,111.77372746,136.48,136.35,2.0438]
[1740704235465,7.3339,136.46,136.35,2.0438]
[1740704235664,111.77372746,136.48,136.35,2.0438]
[1740704236161,119.10682746,136.48,136.35,2.0438]
[1740704236364,0.05290388,136.43,136.4,0.05063235]
[1740704236565,119.10682746,136.48,136.4,0.05063235]
[1740704236755,109.88002746,136.48,136.4,0.05063235]
[1740704236957,109.88002746,136.48,136.45,7.3343]
[1740704237468,7.3328,136.48,136.44,7.3347]
[1740704237659,7.3328,136.48,136.45,0.04665939]
[1740704237860,0.0535724,136.47,136.45,0.04665939]
[1740704238969,0.0535724,136.47,136.45,7.38095939]
[1740704239563,0.0535724,136.47,136.46,7.3338]
[1740704240568,0.0535724,136.47,136.45,7.38075939]
[1740704241062,0.0535724,136.47,136.45,0.04665939]
[1740704241256,0.0535724,136.47,136.46,7.3338]
[1740704242569,0.0535724,136.47,136.45,7.38075939]
[1740704242967,0.0535724,136.47,136.45,0.04665939]
[1740704243167,0.0535724,136.47,136.46,7.3338]
[1740704243669,0.0535724,136.47,136.45,0.04665939]
[1740704244666,7.3869724,136.47,136.45,0.04665939]
[1740704245170,0.0535724,136.47,136.45,0.04665939]
[1740704249374,7.3338,136.46,136.45,0.04665939]
[1740704254174,0.0535724,136.47,136.35,5.8425]
[1740704254478,3.8825,136.46,136.35,5.8425]
[1740704254970,7.3371,136.4,136.35,13.1819]
[1740704255275,3.8825,136.46,136.35,5.8425]
[1740704255472,0.05585807,136.39,136.36,0.05375994]
[1740704255774,0.05281454,136.39,136.36,7.38760028]
[1740704256377,0.05281454,136.39,136.36,7.38740028]
[1740704256876,0.05281454,136.39,136.36,0.04840028]
[1740704257179,0.05281454,136.39,136.37,7.3386]
[1740704257373,0.05281454,136.39,136.36,0.04840028]
[1740704259276,7.3381,136.38,136.36,0.04840028]
[1740704260978,7.3387,136.37,136.36,0.04840028]
[1740704261178,0.05281454,136.39,136.36,0.04840028]
[1740704262482,7.39071454,136.39,136.36,0.04840028]
[1740704263188,7.3382,136.38,136.36,0.04840028]
[1740704264684,7.3387,136.37,136.36,0.04840028]
[1740704269190,11.1863,136.38,136.36,0.04840028]
[1740704273389,7.3387,136.37,136.36,0.04840028]
[1740704273589,3.8481,136.38,136.28,1.9056]
[1740704274391,7.3395,136.36,136.3,7.3421]
[1740704274689,0.04624373,136.34,136.32,0.04957201]
[1740704277988,0.04624373,136.34,136.33,7.3408]
[1740704279092,0.04624373,136.34,136.32,0.04957201]
[1740704279395,0.04624373,136.34,136.32,7.39067201]
[1740704282792,0.04624373,136.34,136.32,0.04957201]
[1740704285490,7.38664373,136.34,136.32,0.04957201]
[1740704285690,0.04624373,136.34,136.32,0.04957201]
[1740704287593,0.04624373,136.34,136.33,7.3408]
[1740704288696,0.04624373,136.34,136.32,7.39067201]
[1740704289198,0.04624373,136.34,136.32,0.04957201]
[1740704289498,0.04624373,136.34,136.33,7.3408]
[1740704290901,0.04624373,136.34,136.32,0.04957201]
[1740704290902,0.04624373,136.34,136.32,7.39067201]
[1740704291901,0.04624373,136.34,136.33,7.3408]
[1740704293501,7.339,136.37,136.32,0.04957201]
[1740704293802,7.3378,136.39,136.32,0.04957201]
[1740704294005,60.23034434,136.4,136.32,0.04957201]
[1740704294206,7.3382,136.38,136.32,0.04957201]
[1740704294407,60.23034434,136.4,136.32,0.04957201]
[1740704294802,0.05645785,136.37,136.32,0.04957201]
[1740704295101,67.56754434,136.4,136.38,7.3381]
[1740704295305,60.23034434,136.4,136.38,7.3381]
[1740704295500,60.23034434,136.4,136.33,3.9176]
[1740704295706,60.23034434,136.4,136.39,7.3376]
[1740704296207,10.03090278,136.4,136.38,7.38507653]
[1740704296403,10.03090278,136.4,136.38,7.3378]
[1740704296602,10.07897314,136.4,136.38,7.39304197]
[1740704297108,10.07897314,136.4,136.39,7.3376]
[1740704297298,10.07897314,136.4,136.38,0.05524197]
[1740704297909,10.07897314,136.4,136.38,7.39284197]
[1740704298702,0.04807036,136.4,136.39,7.3376]
[1740704298903,0.04807036,136.4,136.38,0.05524197]
[1740704299709,0.04807036,136.4,136.39,7.3376]
[1740704299908,40.04320272,136.44,136.38,0.05524197]
[1740704300408,40.04320272,136.44,136.43,7.3354]
[1740704301609,40.09860288,136.45,136.44,7.3349]
[1740704303811,40.09860288,136.45,136.42,0.05550413]
[1740704304011,40.09860288,136.45,136.42,7.39120413]
[1740704304609,0.05540016,136.45,136.42,7.39120413]
[1740704305414,0.05540016,136.45,136.42,0.05550413]
[1740704305715,0.05540016,136.45,136.43,7.3354]
[1740704306513,0.05540016,136.45,136.44,7.3349]
[1740704312622,0.05540016,136.45,136.42,0.05550413]
[1740704312920,0.05540016,136.45,136.43,7.3351]
[1740704314221,0.05540016,136.45,136.42,7.39140413]
[1740704315722,0.05540016,136.45,136.42,0.05550413]
[1740704316023,7.39000016,136.45,136.42,0.05550413]
[1740704317025,7.3349,136.44,136.42,0.05550413]
[1740704318426,7.3354,136.43,136.42,0.05550413]
[1740704320025,3.9046,136.44,136.35,1.8789]
[1740704320324,3.9046,136.44,136.34,1.9247]
[1740704321029,7.3379,136.39,136.34,9.2645]
[1740704321331,7.3379,136.39,136.38,0.04985162]
[1740704321623,0.05207909,136.4,136.37,0.0556832]
[1740704321829,0.05207909,136.4,136.29,3.82]
[1740704322029,7.3403,136.34,136.29,11.1628]
[1740704322533,1.8561,136.39,136.29,3.82]
[1740704322726,2.0165,136.38,136.29,3.82]
[1740704323028,0.04727352,136.35,136.33,0.0480664]
[1740704323229,7.3403,136.34,136.33,0.0480664]
[1740704323624,0.04727352,136.35,136.33,0.0480664]
[1740704331333,0.04727352,136.35,136.34,7.3403]
[1740704339436,0.04727352,136.35,136.33,0.0480664]
[1740704340639,7.38747352,136.35,136.33,0.0480664]
[1740704340837,0.04727352,136.35,136.33,0.0480664]
[1740704343143,7.38737352,136.35,136.33,0.0480664]
[1740704344638,7.3403,136.34,136.33,0.0480664]
[1740704348446,7.3403,136.34,136.25,160.30405025]
[1740704348447,0.04727352,136.35,136.25,5.7855]
[1740704348750,11.54,136.35,136.25,1.9474]
[1740704348949,1.8926,136.34,136.25,1.9474]
[1740704349250,1.8926,136.34,136.2,15.4109]
[1740704349451,1.8926,136.34,136.21,2.0068]
[1740704349750,0.04871772,136.29,136.27,0.05058643]
[1740704350051,0.04645619,136.29,136.27,0.05058643]
[1740704350351,7.38955619,136.29,136.27,0.05058643]
[1740704351547,0.04645619,136.29,136.2,3.8709]
[1740704351752,3.824,136.28,136.2,3.8709]
[1740704351959,3.824,136.28,136.2,1.8707]
[1740704352247,3.824,136.28,136.2,9.2184]
[1740704352446,15.364,136.28,136.14,1.9799]
[1740704352646,15.364,136.28,136.18,7.3488]
[1740704352647,7.3457,136.24,136.18,7.3488]
[1740704352843,0.05280154,136.22,136.2,0.04699661]
[1740704355355,0.05280154,136.22,136.2,7.39449661]
[1740704356653,0.05280154,136.22,136.21,7.3473]
[1740704357858,10.03090278,136.3,136.2,0.04699661]
[1740704358059,10.03090278,136.3,136.18,11.54]
[1740704358558,7.3436,136.28,136.24,7.3456]
[1740704358755,32.05090278,136.3,136.18,11.54]
[1740704359159,0.05545524,136.25,136.23,0.05251388]
[1740704359357,32.05090278,136.3,136.23,0.05251388]
[1740704359661,7.3449,136.26,136.23,0.05251388]
[1740704362759,7.3453,136.25,136.23,0.05251388]
[1740704364961,7.39456478,136.28,136.24,7.3454]
[1740704365154,0.05096478,136.28,136.23,0.05251388]
[1740704365464,0.05096478,136.28,136.24,7.3454]
[1740704365657,0.05096478,136.28,136.23,0.05251388]
[1740704366153,7.39456478,136.28,136.24,7.3453]
[1740704366659,7.39456478,136.28,136.23,0.05251388]
[1740704366860,7.39456478,136.28,136.25,7.3451]
[1740704367563,0.05096478,136.28,136.23,0.05251388]
[1740704368467,7.3449,136.26,136.23,0.05251388]
[1740704368761,11.54,136.27,136.23,0.05251388]
[1740704368957,7.3457,136.24,136.23,0.05251388]
[1740704372162,7.39211155,136.25,136.23,0.05251388]
[1740704372369,0.04671155,136.25,136.23,0.05251388]
[1740704373370,7.3457,136.24,136.23,0.05251388]
[1740704379368,7.3483,136.2,136.15,7.3502]
[1740704379574,22.02,136.24,136.11,1.9458]
[1740704380075,22.02,136.22,136.03,81.66034888]
[1740704380264,1.3117492,136.21,136.04,5.8875]
[1740704380476,7.3526,136.12,136.06,7.3553]
[1740704380678,0.05086966,136.14,136.04,5.8875]
[1740704380883,0.05182613,136.1,136.07,0.05141356]
[1740704381082,7.352,136.13,136.06,7.355]
[1740704381284,0.05467825,136.1,136.07,0.0554496]
[1740704381585,1.31174077,136.18,136.06,7.355]
[1740704381784,0.04987521,136.1,136.07,0.04963026]
[1740704381986,1.31173673,136.18,136.06,7.355]
[1740704382586,0.04854702,136.13,136.11,0.05506487]
[1740704382779,1.31173673,136.18,136.11,0.05506487]
[1740704382780,22.02,136.17,136.11,0.05506487]
[1740704383077,61.47663449,136.18,136.11,0.05506487]
[1740704383078,0.05303974,136.13,136.11,0.05506487]
[1740704383386,0.04639722,136.13,136.11,0.05506487]
[1740704389092,7.3521,136.12,136.11,0.05506487]
[1740704397498,7.3557,136.06,136.04,2.0057]
[1740704397709,11.54,136.11,135.99,1.9906]
[1740704397900,33.56,136.11,136.0,1.991]
[1740704398203,7.3562,136.05,136.0,9.3494]
[1740704398703,0.04639613,136.04,136.01,0.05112267]
[1740704400002,7.3575,136.02,136.01,0.05112267]
[1740704400203,0.04639613,136.04,136.01,0.05112267]
[1740704400703,29.42299613,136.04,136.01,0.05112267]
[1740704401403,22.02,136.03,136.01,0.05112267]
[1740704403203,7.40309613,136.04,136.01,0.05112267]
[1740704403702,0.04639613,136.04,136.01,0.05112267]
[1740704404618,7.40319613,136.04,136.01,0.05112267]
[1740704404810,0.04639613,136.04,136.01,0.05112267]
[1740704405513,22.02,136.03,136.01,0.05112267]
[1740704405813,23.9764,136.03,136.01,0.05112267]
[1740704406011,22.02,136.02,135.93,7.3622]
[1740704406615,7.3595,135.99,135.93,7.3622]
[1740704407216,0.05616326,135.97,135.95,0.05486376]
[1740704407508,7.3598,135.98,135.95,0.05486376]
[1740704407711,0.05532759,135.97,135.95,0.05486376]
[1740704408617,23.9764,136.03,135.95,0.05486376]
[1740704409219,7.3592,135.99,135.95,0.05486376]
[1740704409418,23.9764,136.03,135.95,0.05486376]
[1740704409618,0.05608027,135.98,135.95,0.05486376]
[1740704410717,3.8337,136.07,135.98,7.3594]
[1740704410920,7.3574,136.03,135.98,7.3594]
[1740704411115,3.8337,136.07,135.92,6.0286]
[1740704411316,3.8337,136.07,135.97,7.3601]
[1740704411511,7.3578,136.02,135.97,7.3601]
[1740704411716,0.05337274,136.03,136.01,0.04869869]
[1740704411922,0.05337274,136.03,135.99,7.3587]
[1740704412112,7.3568,136.04,136.01,0.05621853]
[1740704412315,0.05094678,136.02,136.01,0.05621853]
[1740704412714,40.04320272,136.06,136.01,0.05621853]
[1740704412914,0.05297209,136.03,136.01,0.05621853]
[1740704413316,47.39870272,136.06,136.02,7.3575]
[1740704414020,40.04320272,136.06,136.03,7.3567]